Cogmind - Beta 13 @@@ ROGUE MODE // 2024.03.23 @ 12:42:23 Player: Infomantis Result: Self-destructed Performance ------------- Evolutions (2) 1000 Regions Visited (3) 600 Robots Destroyed (38) 190 Value Destroyed (1058) 1058 Prototype IDs (0) 0 Alien Tech Used (0) 0 Bonus (0) 0 TOTAL SCORE: 2848 Bonus ------- None Cogmind --------- Core Integrity 490/550 Matter 205/300 Energy 115/160 System Corruption 0% Temperature Danger (409) Movement Walking (210) Ox1 Location -8/Materials Parts ------- > --- POWER (1) -------- Light Nuclear Core > --- PROPULSION (4) --- Makeshift Leg > --- UTILITY (4) ------ Improved Heat Sink Medium Storage Unit Recoil Stabilizer Hardened Medium Armor Plating > --- WEAPON (2) ------- Subdweller Beam Cannon Subdweller Machine Gun > --- INVENTORY (10) --- Sensor Array Transport Network Coupler EM Shotgun Faulty Improved Medium Laser Minigun Barrage Gun Subdweller Shrapnel Launcher Peak State ------------ > --- POWER ------------ Light Nuclear Core > --- PROPULSION ------- Aluminum Leg Makeshift Leg Makeshift Leg > --- UTILITY ---------- Improved Heat Sink Medium Storage Unit Recoil Stabilizer Hardened Medium Armor Plating > --- WEAPON ----------- Subdweller Beam Cannon Subdweller Machine Gun > --- INVENTORY -------- Sensor Array Transport Network Coupler EM Shotgun Improved Medium Laser Minigun Barrage Gun Subdweller Shrapnel Launcher [Rating: 27] Favorites ----------- Power Light Ion Engine Engine Light Ion Engine Power Core Light Nuclear Core Propulsion Aluminum Leg Treads Light Treads Leg Aluminum Leg Utility Scrap Shield Device Seismic Detector Storage Small Storage Unit Protection Scrap Shield Weapon Subdweller Machine Gun Energy Gun Subdweller Laser Energy Cannon Subdweller Beam Cannon Ballistic Gun Subdweller Machine Gun Launcher Grenade Launcher Special Weapon Mining Laser Build | -11 -10 -10 -8 ------- Run | Yrd Mat Sub Mat Slots Evolved 4 | . . . 4 Power . | . . . . Propulsion 2 | . . . 2 Utility 2 | . . . 2 Weapon . | . . . . Parts Attached 40 | 7 10 16 7 Power 7 | 1 2 3 1 Engine 5 | 1 2 2 . Core 2 | . . 1 1 Reactor . | . . . . Propulsion 9 | 2 2 4 1 Treads 3 | 2 1 . . Leg 6 | . 1 4 1 Wheel . | . . . . Hover . | . . . . Flight . | . . . . Utility 13 | 2 3 3 5 Device 7 | 1 2 1 3 Storage 3 | 1 1 . 1 Processor . | . . . . Hackware . | . . . . Protection 3 | . . 2 1 Artifact . | . . . . Weapon 11 | 2 3 6 . Energy Gun 2 | 1 . 1 . Energy Cannon 1 | . . 1 . Ballistic Gun 6 | 1 3 2 . Ballistic Cannon . | . . . . Launcher 1 | . . 1 . Special Weapon 1 | . . 1 . Impact Weapon . | . . . . Slashing Weapon . | . . . . Piercing Weapon . | . . . . Special Melee Weapon . | . . . . Unidentified Prototypes . | . . . . Parts Lost 11 | . 2 5 4 Power 3 | . . 2 1 Propulsion 4 | . 1 1 2 Utility 2 | . 1 . 1 Weapon 2 | . . 2 . Highest Loss Streak 4 | . 1 4 3 To Critical Strikes . | . . . . Average Slot Usage (%) 87 | . 99 82 79 Engine 8 | . 14 5 5 Core 2 | . . 3 1 Treads 7 | . 25 . . Leg 20 | . 2 27 26 Device 5 | . 13 1 10 Storage 5 | . 14 1 9 Protection 8 | . . 12 8 Energy Gun 4 | . 5 4 . Energy Cannon 5 | . . 8 9 Ballistic Gun 17 | . 22 15 9 Naked Turns . | . . . . Heaviest Build 44 | 13 16 33 44 Greatest Support 50 | 40 40 30 50 Greatest Overweight (x) 1 | . . 1 . Average Overweight (x) . | . . . . Largest Inventory Capacity 10 | 8 10 10 10 Average Capacity 6 | 7 8 5 9 Most Carried 10 | 8 10 10 8 Average Carried 6 | 4 8 5 6 Final Capacity 10 | 8 10 5 10 Final Carried 10 | 8 10 5 7 Class Distribution -------------------- 60% | Subdweller-Mutant 24% | Mutant 15% | Scavenger-Mutant Dominant Class ---------------- Mutant | -10/Materials Subdweller-Mutant | -10/Subcaves Subdweller-Mutant | -8/Materials Resources | -11 -10 -10 -8 ----------- Run | Yrd Mat Sub Mat Matter Collected 727 | 279 226 182 40 Remotely . | . . . . Salvage Created 1282 | 128 599 404 151 Parts 75 | 7 37 22 9 Haulers Intercepted 1 | . 1 . . Recyclers Shooed 2 | 1 . . 1 Parts Field Recycled . | . . . . Retrieved Matter . | . . . . Parts Self-Destructed 9 | . . 9 . Prevented . | . . . . Kills | -11 -10 -10 -8 ------- Run | Yrd Mat Sub Mat Combat Hostiles Destroyed 30 | . 16 11 3 Guns 23 | . 16 7 . Cannons 5 | . . 3 2 AOE 1 | . . 1 . Classes Destroyed 8 | 2 5 1 . Worker 1 | . 1 . . Tunneler 3 | 3 . . . Hauler 1 | . 1 . . Recycler 1 | 1 . . . Watcher 2 | . 2 . . Swarmer 6 | . 6 . . Grunt 17 | . 10 4 3 Subdweller 7 | . . 7 . Best Kill Streak 3 | 3 3 2 3 Combat Bots Only 3 | . 3 2 3 Max Kills in Single Turn 1 | 1 1 1 1 Gunslinging . | . . . . Exploded 1 | . . 1 . Melee . | . . . . Uniques/NPCs Destroyed . | . . . . Combat | -11 -10 -10 -8 -------- Run | Yrd Mat Sub Mat Hostile Shots Fired 195 | . 77 55 63 Missed 42 | . 18 10 14 Damage Taken 2258 | . 619 891 748 Core 276 | . 87 129 60 Absorbed by Shields . | . . . . Core Remaining (%) 56 | 100 . 13 . Volleys Fired 161 | 9 86 53 13 Largest 2 | 2 2 2 2 Hottest 120 | 60 60 120 110 Shots Fired 301 | 18 171 88 24 Gun 280 | 18 171 79 12 Cannon 18 | . . 6 12 Launcher 1 | . . 1 . Special 2 | . . 2 . Kinetic 231 | 9 139 71 12 Thermal 69 | 9 32 16 12 Explosive 1 | . . 1 . Electromagnetic . | . . . . Robot Hit Streak 24 | 9 14 24 4 Robot Miss Streak 6 | 2 6 2 4 Penetration Max . | . . . . Secondary Targets 1 | . 1 . . Max Gunslinging Chain 1 | . 1 . . Shots Hit Robots 185 | 12 104 59 10 Core Hits 64 | 6 36 19 3 Critical Kills 1 | . . . 1 Critical Parts Destroyed 1 | . . 1 . Critical Strikes 3 | . . 2 1 Meltdown 1 | . . . 1 Destroy 2 | . . 2 . Melee Attacks . | . . . . Impact . | . . . . Slashing . | . . . . Piercing . | . . . . Sneak Attacks . | . . . . Combat Hostiles . | . . . . Follow-up Attacks . | . . . . Damage Inflicted 2208 | 117 915 805 371 Guns 1683 | 117 909 583 74 Cannons 438 | . . 164 274 Explosions 58 | . . 58 . Melee . | . . . . Ramming 29 | . 6 . 23 Kinetic 1239 | 51 669 445 74 Thermal 882 | 66 240 302 274 Explosive 58 | . . 58 . Electromagnetic . | . . . . Impact . | . . . . Slashing . | . . . . Piercing . | . . . . Highest Corruption . | . . . . Average Corruption . | . . . . Corruption Purged . | . . . . Corruption Blocked . | . . . . Overload Shots . | . . . . Overflow Damage 4 | . . . 4 Projectiles 4 | . . . 4 Explosions . | . . . . Melee . | . . . . Knockbacks 1 | . . . 1 Impact 1 | . . . 1 Kinetic . | . . . . Secondary . | . . . . Self-Inflicted Damage 39 | . . 39 . Shots 1 | . . 1 . Rammed 3 | . 3 . . Targets Rammed 6 | . 4 . 2 Kicked 2 | . . . 2 Crushed 1 | . 1 . . Highest Temperature 387 | 40 88 7 387 Average Temperature 81 | 19 30 4 181 Received Heat Transfer 915 | . 300 102 513 Effects 1 | . . . 1 Shutdowns 1 | . . . 1 Siege Activations . | . . . . Robots Corrupted . | . . . . Combat Hostiles . | . . . . Parts Fried . | . . . . Impact Corruptions . | . . . . Robots Melted 1 | . . . 1 Combat Hostiles 1 | . . . 1 Parts Melted 4 | 1 3 . . Heat Transferred 1467 | 150 550 397 370 Parts Sabotaged . | . . . . Parts Stolen . | . . . . Parts Stripped . | . . . . Power Chain Reactions . | . . . . Alert | -11 -10 -10 -8 ------- Run | Yrd Mat Sub Mat Peak Influence 361 | 20 361 . 95 Initial 13 | . 13 . . Average 178 | 8 233 . 15 Maximum Alert Level 1 | . 1 . . Low Security (%) 44 | 100 26 . 100 Level 1 55 | . 73 . . Level 2 . | . . . . Level 3 . | . . . . Level 4 . | . . . . Level 5 . | . . . . High Security . | . . . . Max Security . | . . . . Squads Dispatched 9 | . 5 . 4 Investigation 3 | . 2 . 1 Extermination . | . . . . Reinforcement 4 | . 3 . 1 Assault . | . . . . Garrison 2 | . . . 2 Intercept . | . . . . Searches Triggered . | . . . . Construction Impeded . | . . . . Haulers Reinforced . | . . . . Active Scanning Responses . | . . . . Cargo Convoy Interrupts . | . . . . Stealth | -11 -10 -10 -8 --------- Run | Yrd Mat Sub Mat Distress Signals 3 | . 3 . . Communications Jammed . | . . . . Distress Signals . | . . . . Times Spotted 59 | . 36 13 10 Peak Tracking Total 6 | . 5 2 6 Tactical Retreats 4 | . 2 . 2 Traps | -11 -10 -10 -8 ------- Run | Yrd Mat Sub Mat Traps Triggered . | . . . . Indirectly . | . . . . Trap Hack Attempts . | . . . . Triggered . | . . . . Disarmed . | . . . . Reprogrammed . | . . . . Reused . | . . . . Traps Extracted . | . . . . Installed . | . . . . Triggered . | . . . . Machines | -11 -10 -10 -8 ---------- Run | Yrd Mat Sub Mat Machines Disabled . | . . . . Max in Single Turn . | . . . . Machines Repaired . | . . . . Machines Dismantled . | . . . . Machines Sabotaged . | . . . . Overloaded Fab Kills . | . . . . Hacking | -11 -10 -10 -8 --------- Run | Yrd Mat Sub Mat Machines Accessed 5 | . 5 . . Terminals 3 | . 3 . . Fabricators . | . . . . Repair Stations . | . . . . Recycling Units 2 | . 2 . . Scanalyzers . | . . . . Garrison Access . | . . . . Total Hacks 8 | . 8 . . Successful 4 | . 4 . . Failed 4 | . 4 . . Catastrophic . | . . . . Database Lockouts . | . . . . Manual 4 | . 4 . . Terminals 6 | . 6 . . Fabricators . | . . . . Repair Stations . | . . . . Recycling Units 2 | . 2 . . Scanalyzers . | . . . . Garrison Access . | . . . . Terminal Hacks 2 | . 2 . . Branch Access Points 1 | . 1 . . Terminal Index 1 | . 1 . . Fabricator Hacks . | . . . . Repair Station Hacks . | . . . . Recycling Unit Hacks . | . . . . Scanalyzer . | . . . . Garrison Access Hacks . | . . . . Unauthorized Hacks 2 | . 2 . . Terminals . | . . . . Fabricators . | . . . . Repair Stations . | . . . . Recycling Units 2 | . 2 . . Tunnel 2 | . 2 . . Scanalyzers . | . . . . Garrison Access . | . . . . Data Cores Recovered . | . . . . Used . | . . . . Hacking Detections 3 | . 3 . . Full Trace Events . | . . . . Feedback Events . | . . . . Feedback Blocked . | . . . . Robot Schematics Acquired . | . . . . Robots Built . | . . . . Authchips . | . . . . Time . | . . . . Total Robot Build Rating . | . . . . Part Schematics Acquired . | . . . . Parts Built . | . . . . Authchips . | . . . . Time . | . . . . Total Part Build Rating . | . . . . Parts Repaired . | . . . . Time . | . . . . Parts Recycled . | . . . . Recycled Matter . | . . . . Retrieved Matter . | . . . . Retrieved Components . | . . . . Parts Scanalyzed . | . . . . Part Schematics Acquired . | . . . . Parts Damaged . | . . . . Bothacking | -11 -10 -10 -8 ------------ Run | Yrd Mat Sub Mat Used RIF Installer . | . . . . Robots Hacked . | . . . . Non-combat . | . . . . Combat . | . . . . Robot Hacks Applied . | . . . . Relay Couplers Released . | . . . . Fabnet Peak Effective % . | . . . . Robots Rewired . | . . . . Allies Hacked . | . . . . Hacks Repelled . | . . . . Allies | -11 -10 -10 -8 -------- Run | Yrd Mat Sub Mat Total Allies . | . . . . Largest Group . | . . . . Highest-Rated Group . | . . . . Highest-Rated Ally . | . . . . Total Orders . | . . . . Ally Attacks . | . . . . Total Damage . | . . . . Kills . | . . . . Allies Corrupted . | . . . . Allies Melted . | . . . . Intel | -11 -10 -10 -8 ------- Run | Yrd Mat Sub Mat Robot Analysis Total . | . . . . Derelict Logs Recovered 2 | . . 2 . Drone Launches . | . . . . Drone Recoveries . | . . . . Exploration | -11 -10 -10 -8 ------------- Run | Yrd Mat Sub Mat Turns Passed 4129 | 182 1103 2664 180 Spaces Moved 1820 | 89 451 1188 92 Core 4 | 4 . . . Treads 547 | 85 451 11 . Legs 1269 | . . 1177 92 Wheels . | . . . . Hover . | . . . . Flight . | . . . . Fastest Speed 50 | 50 160 120 133 Average Speed 179 | 155 160 193 133 Slowest Speed 200 | 160 160 200 133 Overloaded Moves . | . . . . Propulsion Burnouts . | . . . . Robots Hopped . | . . . . Cave-ins Triggered . | . . . . Exploration Rate (%) 34 | 6 61 59 13 Regions Visited 3 Branch Regions 1 Pre-discovered Areas 4 | . 2 2 . Known Exits Taken . | . . . . Unknown Exits Taken 3 | 1 1 1 . Scrap Searched 1 | . . 1 . Spaces Dug . | . . . . Terrain Destroyed 15 | . . 9 6 Melee . | . . . . Projectile 6 | . . . 6 AOE 9 | . . 9 . Terrain Rammed . | . . . . Walls Destroyed . | . . . . Machines Disabled . | . . . . Actions | -11 -10 -10 -8 --------- Run | Yrd Mat Sub Mat Total 2405 | 113 689 1480 123 Wait 321 | 1 124 194 2 Move 1817 | 88 450 1187 92 Hop . | . . . . Pick Up 25 | 8 5 6 6 Fast Attach 19 | 7 4 6 2 Attach 9 | . . 4 5 Detach 4 | . . 3 1 Swap 12 | . 6 6 . Drop 26 | . 10 16 . Fire 161 | 9 86 53 13 Melee . | . . . . Ram . | . . . . Kick 2 | . . . 2 Crush 4 | . 4 . . Escape Stasis . | . . . . Rewire . | . . . . Trap . | . . . . Miscellaneous 5 | . . 5 . Route ------- -11/Scrapyard -10/Materials (discovered 5 exits: [*Mat x3] / *Min / [*Sub]) -10/Subcaves (discovered 2 exits: [*Mat] / Rec) -8/Materials History --------- Turn | Location | Event 5 | -11/Scrapyard | Discovered new exit (range 15) 183 | -11/Scrapyard | Entered Materials 242 | -10/Materials | Identified exit to Mines 309 | -10/Materials | Build established: Mutant 400 | -10/Materials | Discovered new exit (range 15) 607 | -10/Materials | Discovered new exit (range 12) 947 | -10/Materials | Discovered new exit (range 7) 1093 | -10/Materials | Discovered new exit (range 15) 1286 | -10/Materials | Entered Subcaves 1348 | -10/Subcaves | Core integrity fell below 50% 1392 | -10/Subcaves | Lost 4 parts (1p1n2w) 1417 | -10/Subcaves | Build established: Scavenger-Mutant 1935 | -10/Subcaves | Build established: Subdweller-Mutant 2789 | -10/Subcaves | Identified exit to Recycling 2808 | -10/Subcaves | Learned location of Zion (-7) 2854 | -10/Subcaves | Met a Zionite searching for "candidates" 3212 | -10/Subcaves | A swath of the cavern ceiling suddenly collapsed 3215 | -10/Subcaves | Core integrity fell below 20% 3387 | -10/Subcaves | Shifting Twisted Machinery released Shrapnel Trap 3417 | -10/Subcaves | Shifting Twisted Machinery released Piercing Trap 3458 | -10/Subcaves | Shifting Twisted Machinery released Sub. Shrapnel Launcher 3461 | -10/Subcaves | Shifting Twisted Machinery released Battle Cannon 3907 | -10/Subcaves | Discovered new exit (range 10) 3908 | -10/Subcaves | Shifting Twisted Machinery released Mak. Kinetic Plating 3914 | -10/Subcaves | Shifting Twisted Machinery released Sub. Machine Gun 3950 | -10/Subcaves | Entered Materials 3950 | -8/Materials | Evolved 4 slots: Propulsion x2, Utility x2 3982 | -8/Materials | Garrison activated, responded to threat 4130 | -8/Materials | Self-destructed Last Messages --------------- reinforcements to Terminal M006. 04081_ Acquired Prototype Energy Gun. 04087_ G-47 Trooper destroyed. 04091_ Critical hit (Burn: +37). 04096_ G-47 Trooper suffers critical hit (Meltdown). 04098_ Scrap Shield destroyed. 04105_ U-05 Engineer builds a Wall. 04105_ Acquired Lgt. Nuclear Core. 04113_ G-47 Trooper destroyed. 04114_ Acquired 40 matter. 04115_ Critical hit (Burn: +37). 04118_ Acquired Imp. Heat Sink. 04119_ Destroyed Tractor Beam. 04127_ Power failure, Lgt. Nuclear Core shutdown. 04128_ Sub. Machine Gun shoots sparks and powers down. 04128_ Mak. Leg destroyed. 04129_ Critical hit (Burn: +37). 04130_ Aluminum Leg destroyed. 04130_ Critical hit (Burn: +37). Map ----- +----------------------------------------------------+ | ?????????????????????????????????????????????????? | | ?????????????????????????????????????????????????? | | ?????????????????????????????????????????????????? | | ?????????????????????????????????????????????????? | | ?????????????????????????????????????????????????? | | ?????????????????????????????????????????????????? | | ?????????????????????????????????????????????????? | | ?????????????????????????????????????????????????? | | ?????????????????????????????????????????????????? | | ?????????????????????????????????????????????????? | | ?????????????????????????????????????????????????? | | ?????????????????????????????????????????????????? | | ??????????????????????? ?????????????????????????? | | ??????????????????????? ?????????????????????????? | | ??????????????????????? ?????????????????????????? | | ??????????????????????? ?????????????????????????? | | ??????????????????????? ?????????????????????????? | | ??????????????????????? ?????????????????????????? | | ??????????????????????? ?????????????????????????? | | ??????????????????????# #????????????????????????? | | ??????????????????????# #????????????????????????? | | ????????????????#####?# #????##??????????????????? | | ???????????????##!!!!## #####;##?????????????????? | | ???????????????#! !# #= #?????????????????? | | +###???????????# #u#* #?????????????????? | | #??????????## #!g@= #?????????????????? | | #??????# ggg [ #?????????????????? | | ##########???##+## u;= "T" #?????????????????? | | + #???????# ########?????????????????? | | # #???????# #????????????????????????? | | + #???????# #????????????????????????? | | # #???????# #????????????????????????? | | # #???????# #????????????????????????? | | #? #???????# #????????????????????????? | | ### #??###??????## #????????????????????????? | | ??# #############" ##/#?????????????????????? | | ??# ??????????????? | | ??# ###########" ## ####????????????????? | | ??# #????????? # #??????????????????????? | | ??# #????????? # #??????????????????????? | | ??# #######?? !# #??????????????????????? | | ??# +?? # #??????????????????????? | | ??# ######? # #??????????????????????? | | ??# #?????? ? #??????????????????????? | | ??# #????? |?? #??????????????????????? | | ??# +????? ?? #??????????????????????? | | ??#+### #????# ?? #??????????????????????? | | ??????## #????####?? #??????????????????????? | | ???????# #?????????? #??????????????????????? | | ???????? /?????????? ????????????????????????? | +----------------------------------------------------+ Best States ------------- Heat Dissipation 45 Energy Generation 14 Energy Capacity 250 Matter Stores 300 Matter Capacity 300 Sight Range 16 Robot Scan Range 14 Terrain Scan Density 10 Armor Coverage 800 Evasion (%) 55 Recoil Reduction 4 Item Schematics ----------------- None Robot Schematics ------------------ None Fabricated ------------ Nothing Alien Tech Used ----------------- None Achievements -------------- None Challenges ------------ None Game ------ Seed ChipSigixMatter Manual? 0 Play Time 00:19:36 Cumulative 390.7 hours Start 2024.03.23 @ 12:23:37 End 2024.03.23 @ 12:42:23 Sessions 1 Manual Loads 0 Difficulty Rogue Special Mode None Game No. 259 Rogue 236 Adventurer 6 Explorer 17 Win Type - Total 30 Types 21/0/5/1/0/1/1/1/0 Lore% 92 Gallery% 95 Achievement% 79 Wizard Run 0 Options --------- Layout 1 ASCII 0 Keyboard 0 Movement Numpad Keybinds 0 Fullscreen 1 Font 16/TamsynBold Map View 55x38 Zoom Use 0% Tactical HUD 1 Map Filters NONE Filters NONE Steam 1 RUN: 903b1c12-8768-4d8a-96c1-b0535fc6e8e9